{"text_format":"3","workbook":"xlsx","n_sheets":2,"sheets":["Проследяване на дейностите","Списък на дейностите"],"not_rendered":{"charts":1,"defined_names":15},"read":"whole","date_system":"1900"}

{"sheet":"Проследяване на дейностите","index":0,"n_rows":23,"n_cols":11,"rows_kept":23,"merged":[[0,0,0,2],[0,3,3,10],[1,0,1,2],[2,0,5,0],[2,1,3,1],[4,1,5,1],[6,0,9,0],[6,1,7,1],[8,1,9,1],[10,0,13,0],[10,1,11,1],[12,1,13,1],[14,0,17,0],[14,1,15,1],[16,1,17,1],[18,0,21,0],[18,1,19,1],[20,1,21,1],[22,0,23,0],[22,1,23,1],[22,2,23,2]]}
["Проследяване на дейностите"]
["Проследете своите 5 най-важни дейности! Попълнете информацията за дейността по-долу с дейностите, които извършвате най-много. След това добавете записи за тях към дневника на дейностите, за да проследите напредъка си."]
["Колоездене",{"$f":"SUMIF(Списък[Дейност],Category1,Списък[Общо])","v":{"v":19.46,"d":"19.5"}}]
[null,null,"Мили"]
[null,{"$f":"SUMIF(Списък[Дейност],Category1,Списък[Калории])","v":847},"Калории","Дата","Дейност","Начален час","Продължителност","Общо","Единица","Калории","Забележка"]
[{"$nulls":3},"Дата","Колоездене","16:00:00","00:23:00",3.66,{"$f":"IFERROR(VLOOKUP(Списък[[#This Row],[Дейност]],ActivityLookup,2,FALSE),\"\")","v":"Мили"},173,"Горещо и влажно"]
["Плуване",{"$f":"SUMIF(Списък[Дейност],Category2,Списък[Общо])","v":{"v":1700,"d":"1700.0"}},null,"Дата","Колоездене","14:30:00","00:45:00",7.8,{"$f":"IFERROR(VLOOKUP(Списък[[#This Row],[Дейност]],ActivityLookup,2,FALSE),\"\")","v":"Мили"},330,"Хладен следобед"]
[null,null,"Метри","Дата","Плуване","10:00:00","00:30:00",1700,{"$f":"IFERROR(VLOOKUP(Списък[[#This Row],[Дейност]],ActivityLookup,2,FALSE),\"\")","v":"Метри"},237,"След добро спане предишната нощ"]
[null,{"$f":"SUMIF(Списък[Дейност],Category2,Списък[Калории])","v":237},"Калории","Дата","Дейност 3","13:30:00","00:35:00",3227,{"$f":"IFERROR(VLOOKUP(Списък[[#This Row],[Дейност]],ActivityLookup,2,FALSE),\"\")","v":"Крачки"},150]
[{"$nulls":3},"Дата","Дейност 4","05:30:00","00:30:00",30,{"$f":"IFERROR(VLOOKUP(Списък[[#This Row],[Дейност]],ActivityLookup,2,FALSE),\"\")","v":"Повторения"},115]
["Дейност 3",{"$f":"SUMIF(Списък[Дейност],Category3,Списък[Общо])","v":{"v":3227,"d":"3227.0"}},null,"Дата","Дейност 5","06:00:00","00:45:00",5,{"$f":"IFERROR(VLOOKUP(Списък[[#This Row],[Дейност]],ActivityLookup,2,FALSE),\"\")","v":"Мили"},345]
[null,null,"Крачки","Дата","Колоездене","10:00:00","00:40:00",8,{"$f":"IFERROR(VLOOKUP(Списък[[#This Row],[Дейност]],ActivityLookup,2,FALSE),\"\")","v":"Мили"},344]
[null,{"$f":"SUMIF(Списък[Дейност],Category3,Списък[Калории])","v":150},"Калории"]
[]
["Дейност 4",{"$f":"SUMIF(Списък[Дейност],Category4,Списък[Общо])","v":{"v":30,"d":"30.0"}}]
[null,null,"Повторения"]
[null,{"$f":"SUMIF(Списък[Дейност],Category4,Списък[Калории])","v":115},"Калории"]
[]
["Дейност 5",{"$f":"SUMIF(Списък[Дейност],Category5,Списък[Общо])","v":{"v":5,"d":"5.0"}}]
[null,null,"Мили"]
[null,{"$f":"SUMIF(Списък[Дейност],Category5,Списък[Калории])","v":345},"Калории"]
[]
["Общо",{"$f":"SUM(B21,B17,B13,B9,B5)","v":1694},"Калории"]

{"sheet":"Списък на дейностите","index":1,"n_rows":8,"n_cols":3,"rows_kept":8,"hidden":true,"merged":[[0,1,0,2],[1,1,1,2]]}
[null,"Списък на дейностите"]
[null,"Списъкът по-долу е свързан с обичайните дейности и се попълва падащия списък в дневника на дейностите. Този лист трябва да остане скрит."]
[null,"Дейност","Единица"]
[null,{"$f":"TRIM(Category1)","v":"Колоездене"},{"$f":"Category1Unit","v":"Мили"}]
[null,{"$f":"TRIM(Category2)","v":"Плуване"},{"$f":"Category2Unit","v":"Метри"}]
[null,{"$f":"TRIM(Category3)","v":"Дейност 3"},{"$f":"Category3Unit","v":"Крачки"}]
[null,{"$f":"TRIM(Category4)","v":"Дейност 4"},{"$f":"Category4Unit","v":"Повторения"}]
[null,{"$f":"TRIM(Category5)","v":"Дейност 5"},{"$f":"Category5Unit","v":"Мили"}]